[Event "Early-Titled-Tuesday-Blitz-June-18-2024"]
[Site "Chess.com"]
[Date "2024.06.18"]
[Round "6"]
[White "CrimeFightingSpider07"]
[Black "Individoom"]
[Result "0-1"]
[WhiteElo "2548"]
[BlackElo "2794"]
[TimeControl "180+1"]
[EndTime "9:08:56 PDT"]
[Termination "Individoom won by checkmate"]

1. d4 {[%clk 0:01:20.8]} 1... Nf6 {[%clk 0:02:58.4]} 2. Nf3 {[%clk 0:01:19]}
2... g6 {[%clk 0:02:58.4]} 3. c4 {[%clk 0:01:19.6]} 3... Bg7 {[%clk 0:02:58.6]}
4. g3 {[%clk 0:01:19.8]} 4... O-O {[%clk 0:02:59]} 5. Bg2 {[%clk 0:01:20.5]}
5... d6 {[%clk 0:02:59.6]} 6. O-O {[%clk 0:01:21.2]} 6... Nbd7 {[%clk
0:03:00.3]} 7. Nc3 {[%clk 0:01:20.3]} 7... e5 {[%clk 0:03:00.4]} 8. e4 {[%clk
0:01:21]} 8... exd4 {[%clk 0:03:00.1]} 9. Nxd4 {[%clk 0:01:20.9]} 9... Re8
{[%clk 0:03:00.7]} 10. Re1 {[%clk 0:01:21.3]} 10... Nc5 {[%clk 0:03:00.8]} 11.
h3 {[%clk 0:01:21.7]} 11... Bd7 {[%clk 0:02:59.9]} 12. Nb3 {[%clk 0:01:17.1]}
12... Na4 {[%clk 0:02:58.9]} 13. Nxa4 {[%clk 0:01:13.1]} 13... Bxa4 {[%clk
0:02:58.1]} 14. Bg5 {[%clk 0:01:12.2]} 14... h6 {[%clk 0:02:55.7]} 15. Bd2
{[%clk 0:01:12.2]} 15... Nd7 {[%clk 0:02:54.1]} 16. Qc2 {[%clk 0:01:10.7]} 16...
Nc5 {[%clk 0:02:41.1]} 17. Bc3 {[%clk 0:01:10.5]} 17... Ne6 {[%clk 0:02:37.6]}
18. Bxg7 {[%clk 0:01:09.6]} 18... Kxg7 {[%clk 0:02:37.4]} 19. Qc3+ {[%clk
0:01:10.2]} 19... Qf6 {[%clk 0:02:33.3]} 20. e5 {[%clk 0:00:59.9]} 20... dxe5
{[%clk 0:02:31]} 21. Rxe5 {[%clk 0:00:58.6]} 21... Bxb3 {[%clk 0:02:07.4]} 22.
axb3 {[%clk 0:00:55.5]} 22... c6 {[%clk 0:02:07.5]} 23. Rae1 {[%clk 0:00:52.1]}
23... Red8 {[%clk 0:02:03.9]} 24. h4 {[%clk 0:00:45.8]} 24... h5 {[%clk
0:02:00]} 25. R5e4 {[%clk 0:00:31.6]} 25... a5 {[%clk 0:01:00.6]} 26. Bh3 {[%clk
0:00:20.6]} 26... Qxc3 {[%clk 0:00:48.7]} 27. bxc3 {[%clk 0:00:20.3]} 27... Nc5
{[%clk 0:00:49.1]} 28. Re8 {[%clk 0:00:20.4]} 28... Rxe8 {[%clk 0:00:48.4]} 29.
Rb1 {[%clk 0:00:04.8]} 29... Re2 {[%clk 0:00:43.5]} 30. b4 {[%clk 0:00:04.3]}
30... axb4 {[%clk 0:00:43]} 31. cxb4 {[%clk 0:00:04.8]} 31... Ne4 {[%clk
0:00:42.9]} 32. Bf1 {[%clk 0:00:04.1]} 32... Rd2 {[%clk 0:00:36.2]} 33. Bg2
{[%clk 0:00:02.7]} 33... Nxf2 {[%clk 0:00:35.8]} 34. Re1 {[%clk 0:00:02.9]}
34... Raa2 {[%clk 0:00:33.6]} 35. Re7 {[%clk 0:00:03.5]} 35... Nd3 {[%clk
0:00:31.2]} 36. Be4 {[%clk 0:00:03.7]} 36... Rd1# {[%clk 0:00:30.7]} 0-1

[Event "Early-Titled-Tuesday-Blitz-June-18-2024"]
[Site "Chess.com"]
[Date "2024.06.18"]
[Round "6"]
[White "GMG"]
[Black "Barboval"]
[Result "1/2-1/2"]
[WhiteElo "2709"]
[BlackElo "2537"]
[TimeControl "180+1"]
[EndTime "9:08:56 PDT"]
[Termination "Game drawn by repetition"]

1. d4 {[%clk 0:03:00.9]} 1... Nf6 {[%clk 0:02:58.2]} 2. g3 {[%clk 0:03:00.2]}
2... d5 {[%clk 0:02:54.9]} 3. Nf3 {[%clk 0:02:59.7]} 3... Bg4 {[%clk 0:02:55]}
4. Bg2 {[%clk 0:02:57.7]} 4... Bxf3 {[%clk 0:02:55.3]} 5. Bxf3 {[%clk
0:02:56.4]} 5... e6 {[%clk 0:02:55.9]} 6. c4 {[%clk 0:02:56.2]} 6... c6 {[%clk
0:02:53.2]} 7. O-O {[%clk 0:02:45]} 7... Be7 {[%clk 0:02:51.6]} 8. b3 {[%clk
0:02:45.1]} 8... O-O {[%clk 0:02:51.9]} 9. Bb2 {[%clk 0:02:45.6]} 9... a5 {[%clk
0:02:49.7]} 10. Nc3 {[%clk 0:02:45.4]} 10... Nbd7 {[%clk 0:02:49.2]} 11. e3
{[%clk 0:02:42.9]} 11... Nb6 {[%clk 0:02:49]} 12. Qd3 {[%clk 0:02:37.2]} 12...
a4 {[%clk 0:02:38.9]} 13. c5 {[%clk 0:02:36.8]} 13... axb3 {[%clk 0:02:31.7]}
14. cxb6 {[%clk 0:02:34]} 14... Qxb6 {[%clk 0:02:27]} 15. Rfb1 {[%clk
0:02:15.7]} 15... bxa2 {[%clk 0:02:14.3]} 16. Nxa2 {[%clk 0:02:12.9]} 16... Qc7
{[%clk 0:02:09.7]} 17. Nc3 {[%clk 0:02:06.4]} 17... b5 {[%clk 0:02:07.4]} 18.
Bd1 {[%clk 0:02:00.9]} 18... b4 {[%clk 0:02:02.7]} 19. Na4 {[%clk 0:01:55.7]}
19... Ne4 {[%clk 0:02:02.5]} 20. Rc1 {[%clk 0:01:54.7]} 20... Ra7 {[%clk
0:01:50.1]} 21. Kg2 {[%clk 0:01:52.6]} 21... Rfa8 {[%clk 0:01:50.6]} 22. f3
{[%clk 0:01:51.3]} 22... Nd6 {[%clk 0:01:50.8]} 23. Nc5 {[%clk 0:01:37.9]} 23...
Nc4 {[%clk 0:01:50.4]} 24. Rxa7 {[%clk 0:01:37.5]} 24... Rxa7 {[%clk 0:01:50.3]}
25. Rxc4 {[%clk 0:01:27.8]} 25... dxc4 {[%clk 0:01:51.2]} 26. Qxc4 {[%clk
0:01:28.6]} 26... Bxc5 {[%clk 0:01:44.1]} 27. dxc5 {[%clk 0:01:26]} 27... Qd7
{[%clk 0:01:27.9]} 28. Qxb4 {[%clk 0:01:19.3]} 28... Rb7 {[%clk 0:01:27.9]} 29.
Qd4 {[%clk 0:01:11.6]} 29... e5 {[%clk 0:01:05.6]} 30. Qxe5 {[%clk 0:01:10.6]}
30... f6 {[%clk 0:01:05.5]} 31. Qd4 {[%clk 0:00:58]} 31... Rxb2+ {[%clk
0:01:05.5]} 32. Qxb2 {[%clk 0:00:57.6]} 32... Qxd1 {[%clk 0:01:06.4]} 33. Qb8+
{[%clk 0:00:30.2]} 33... Kf7 {[%clk 0:01:06.5]} 34. Qc7+ {[%clk 0:00:30.8]}
34... Kg6 {[%clk 0:01:05.2]} 35. Qxc6 {[%clk 0:00:28.8]} 35... Qe2+ {[%clk
0:01:02.3]} 36. Kh3 {[%clk 0:00:27]} 36... h5 {[%clk 0:00:43]} 37. Qe4+ {[%clk
0:00:26]} 37... Kh6 {[%clk 0:00:42.1]} 38. Qf4+ {[%clk 0:00:26]} 38... Kh7
{[%clk 0:00:40.4]} 39. Qf5+ {[%clk 0:00:19.1]} 39... Kh6 {[%clk 0:00:40.9]} 40.
Qf4+ {[%clk 0:00:13.6]} 40... Kh7 {[%clk 0:00:41]} 41. Qe4+ {[%clk 0:00:12.5]}
41... Kh6 {[%clk 0:00:40.7]} 42. f4 {[%clk 0:00:12.4]} 42... Qg4+ {[%clk
0:00:36]} 43. Kg2 {[%clk 0:00:12.2]} 43... Qe2+ {[%clk 0:00:36.9]} 44. Kg1
{[%clk 0:00:12.5]} 44... Qe1+ {[%clk 0:00:37.3]} 45. Kg2 {[%clk 0:00:13]} 45...
Qe2+ {[%clk 0:00:37.6]} 46. Kg1 {[%clk 0:00:13.5]} 46... Qe1+ {[%clk 0:00:37.5]}
47. Kg2 {[%clk 0:00:14]} 47... Qe2+ {[%clk 0:00:37.6]} 1/2-1/2

[Event "Early-Titled-Tuesday-Blitz-June-18-2024"]
[Site "Chess.com"]
[Date "2024.06.18"]
[Round "6"]
[White "snowlord"]
[Black "AnishOnYoutube"]
[Result "0-1"]
[WhiteElo "2968"]
[BlackElo "3077"]
[TimeControl "180+1"]
[EndTime "9:08:59 PDT"]
[Termination "AnishOnYoutube won by resignation"]

1. d4 {[%clk 0:02:59.9]} 1... d5 {[%clk 0:02:59.4]} 2. c4 {[%clk 0:02:59.9]}
2... c6 {[%clk 0:02:59.8]} 3. Nf3 {[%clk 0:03:00.2]} 3... Nf6 {[%clk 0:03:00.3]}
4. Qb3 {[%clk 0:02:59.9]} 4... dxc4 {[%clk 0:02:58.2]} 5. Qxc4 {[%clk
0:03:00.8]} 5... Bf5 {[%clk 0:02:58.6]} 6. g3 {[%clk 0:03:01.1]} 6... e6 {[%clk
0:02:59.2]} 7. Bg2 {[%clk 0:03:01.6]} 7... Be7 {[%clk 0:02:59.7]} 8. O-O {[%clk
0:03:02]} 8... O-O {[%clk 0:03:00.2]} 9. e3 {[%clk 0:03:02.7]} 9... Nbd7 {[%clk
0:03:00.1]} 10. Nc3 {[%clk 0:03:02.7]} 10... Rc8 {[%clk 0:02:59.4]} 11. Nh4
{[%clk 0:02:59.6]} 11... Bg4 {[%clk 0:02:51.6]} 12. h3 {[%clk 0:02:59.6]} 12...
Bh5 {[%clk 0:02:51.9]} 13. g4 {[%clk 0:03:00.1]} 13... Nd5 {[%clk 0:02:43.8]}
14. Nf5 {[%clk 0:02:51.3]} 14... exf5 {[%clk 0:02:39.3]} 15. gxh5 {[%clk
0:02:51.5]} 15... N7f6 {[%clk 0:02:39.5]} 16. h6 {[%clk 0:02:47.1]} 16... g6
{[%clk 0:02:39.1]} 17. Bd2 {[%clk 0:02:41.9]} 17... Re8 {[%clk 0:02:37.3]} 18.
Qb3 {[%clk 0:02:38]} 18... Qd7 {[%clk 0:02:34.4]} 19. Nxd5 {[%clk 0:02:11.7]}
19... cxd5 {[%clk 0:02:31.3]} 20. Bb4 {[%clk 0:02:11.3]} 20... Bxb4 {[%clk
0:02:18.4]} 21. Qxb4 {[%clk 0:02:12.2]} 21... Qe7 {[%clk 0:02:18]} 22. Qb3
{[%clk 0:02:03.5]} 22... Rcd8 {[%clk 0:02:07.9]} 23. Rac1 {[%clk 0:02:02.3]}
23... Rd7 {[%clk 0:02:08.3]} 24. Rc5 {[%clk 0:01:56.8]} 24... Qf8 {[%clk
0:01:55.4]} 25. Qb5 {[%clk 0:01:12.5]} 25... Qxh6 {[%clk 0:01:29.8]} 26. Rfc1
{[%clk 0:00:43.2]} 26... f4 {[%clk 0:01:12.8]} 27. Rc8 {[%clk 0:00:43.5]} 27...
Re7 {[%clk 0:01:06]} 28. exf4 {[%clk 0:00:35.2]} 28... Qxf4 {[%clk 0:01:01]} 29.
Rxe8+ {[%clk 0:00:26.8]} 29... Rxe8 {[%clk 0:00:58]} 30. Rf1 {[%clk 0:00:23.1]}
30... Qxd4 {[%clk 0:00:54.3]} 31. Qxb7 {[%clk 0:00:23.4]} 31... Re2 {[%clk
0:00:52.1]} 32. Qc8+ {[%clk 0:00:04.8]} 32... Kg7 {[%clk 0:00:52]} 33. Qc3
{[%clk 0:00:05.7]} 33... Qxc3 {[%clk 0:00:50.9]} 34. bxc3 {[%clk 0:00:06.2]}
34... Rxa2 {[%clk 0:00:51.6]} 35. Rd1 {[%clk 0:00:06.8]} 35... Ra3 {[%clk
0:00:49.3]} 36. Rd3 {[%clk 0:00:04.6]} 36... a5 {[%clk 0:00:46.8]} 37. Kh2
{[%clk 0:00:05.3]} 37... a4 {[%clk 0:00:47]} 38. Bxd5 {[%clk 0:00:05.3]} 38...
Nxd5 {[%clk 0:00:46.6]} 39. Rxd5 {[%clk 0:00:06.2]} 39... Rxc3 {[%clk
0:00:47.2]} 40. Ra5 {[%clk 0:00:07]} 40... a3 {[%clk 0:00:47.5]} 41. Kg2 {[%clk
0:00:06.1]} 41... Kf6 {[%clk 0:00:47.1]} 42. Ra7 {[%clk 0:00:06.1]} 42... Ke6
{[%clk 0:00:47]} 43. f3 {[%clk 0:00:06.8]} 43... Rc2+ {[%clk 0:00:43.5]} 44. Kg3
{[%clk 0:00:07.5]} 44... a2 {[%clk 0:00:44.2]} 45. h4 {[%clk 0:00:08.1]} 45...
Kd5 {[%clk 0:00:36.5]} 0-1

[Event "Early-Titled-Tuesday-Blitz-June-18-2024"]
[Site "Chess.com"]
[Date "2024.06.18"]
[Round "6"]
[White "gpsji27"]
[Black "Brown_Bear_MGL"]
[Result "0-1"]
[WhiteElo "2325"]
[BlackElo "2503"]
[TimeControl "180+1"]
[EndTime "9:08:59 PDT"]
[Termination "Brown_Bear_MGL won on time"]

1. d4 {[%clk 0:03:00.9]} 1... Nf6 {[%clk 0:02:59.5]} 2. Bg5 {[%clk 0:02:54.7]}
2... d5 {[%clk 0:02:55.4]} 3. Nd2 {[%clk 0:02:53.2]} 3... e6 {[%clk 0:02:55.4]}
4. e3 {[%clk 0:02:49.8]} 4... c5 {[%clk 0:02:54.9]} 5. Ngf3 {[%clk 0:02:45.9]}
5... Qb6 {[%clk 0:02:53.9]} 6. Rb1 {[%clk 0:02:42.3]} 6... Bd7 {[%clk
0:02:53.3]} 7. c3 {[%clk 0:02:42.3]} 7... Bb5 {[%clk 0:02:52.9]} 8. Bxb5+ {[%clk
0:02:38]} 8... Qxb5 {[%clk 0:02:53.8]} 9. a4 {[%clk 0:02:38.8]} 9... Qa6 {[%clk
0:02:32.4]} 10. dxc5 {[%clk 0:02:37.4]} 10... Bxc5 {[%clk 0:02:31.5]} 11. b4
{[%clk 0:02:36.8]} 11... Be7 {[%clk 0:02:31.5]} 12. b5 {[%clk 0:02:35.5]} 12...
Qa5 {[%clk 0:02:28.4]} 13. Qb3 {[%clk 0:02:33.7]} 13... Nbd7 {[%clk 0:02:25.8]}
14. Ra1 {[%clk 0:02:18.4]} 14... Rc8 {[%clk 0:02:20.2]} 15. Nb1 {[%clk 0:02:05]}
15... Nc5 {[%clk 0:02:12.3]} 16. Qc2 {[%clk 0:02:02.8]} 16... Nce4 {[%clk
0:02:10.9]} 17. O-O {[%clk 0:02:03.1]} 17... O-O {[%clk 0:02:03.5]} 18. Rc1
{[%clk 0:02:00.3]} 18... Nxg5 {[%clk 0:01:41.9]} 19. Nxg5 {[%clk 0:01:53.4]}
19... h6 {[%clk 0:01:35.4]} 20. Nf3 {[%clk 0:01:52.3]} 20... Ne4 {[%clk
0:01:35.5]} 21. Ne5 {[%clk 0:01:30.1]} 21... Rc7 {[%clk 0:01:26.6]} 22. f3
{[%clk 0:01:22.9]} 22... Nd6 {[%clk 0:01:05.6]} 23. Nd2 {[%clk 0:01:06.4]} 23...
Bf6 {[%clk 0:01:05.2]} 24. Nb3 {[%clk 0:00:56.8]} 24... Qb6 {[%clk 0:01:05.2]}
25. Ng4 {[%clk 0:00:44]} 25... Bxc3 {[%clk 0:00:58]} 26. Qd3 {[%clk 0:00:21.8]}
26... Rfc8 {[%clk 0:00:55.3]} 27. Rab1 {[%clk 0:00:20.7]} 27... h5 {[%clk
0:00:51.1]} 28. Nf2 {[%clk 0:00:19]} 28... Bf6 {[%clk 0:00:42]} 29. Rxc7 {[%clk
0:00:14.7]} 29... Rxc7 {[%clk 0:00:41.7]} 30. h3 {[%clk 0:00:15.4]} 30... Rc3
{[%clk 0:00:36.7]} 31. Qd2 {[%clk 0:00:14.3]} 31... Qxe3 {[%clk 0:00:35.9]} 32.
Qxe3 {[%clk 0:00:09.8]} 32... Rxe3 {[%clk 0:00:36.8]} 33. Na5 {[%clk 0:00:10.7]}
33... Bd4 {[%clk 0:00:35.1]} 34. Kf1 {[%clk 0:00:09.6]} 34... Ra3 {[%clk
0:00:32.4]} 35. Rb4 {[%clk 0:00:01.6]} 35... Bc5 {[%clk 0:00:29.5]} 0-1

[Event "Early-Titled-Tuesday-Blitz-June-18-2024"]
[Site "Chess.com"]
[Date "2024.06.18"]
[Round "6"]
[White "Hudijegszid"]
[Black "Boundless_Strike"]
[Result "0-1"]
[WhiteElo "2517"]
[BlackElo "2665"]
[TimeControl "180+1"]
[EndTime "9:09:00 PDT"]
[Termination "Boundless_Strike won on time"]

1. c4 {[%clk 0:02:38.7]} 1... d6 {[%clk 0:02:57.2]} 2. g3 {[%clk 0:02:36.7]}
2... e5 {[%clk 0:02:56.9]} 3. Bg2 {[%clk 0:02:37.2]} 3... f5 {[%clk 0:02:56.9]}
4. d4 {[%clk 0:02:36.2]} 4... Nd7 {[%clk 0:02:46.2]} 5. Nc3 {[%clk 0:02:35.5]}
5... Ngf6 {[%clk 0:02:45.5]} 6. Bg5 {[%clk 0:02:26.1]} 6... c6 {[%clk
0:02:42.6]} 7. e4 {[%clk 0:02:20.6]} 7... fxe4 {[%clk 0:02:35]} 8. Nxe4 {[%clk
0:02:15.8]} 8... Be7 {[%clk 0:02:30.4]} 9. Nxf6+ {[%clk 0:02:13.8]} 9... Bxf6
{[%clk 0:02:26.9]} 10. Be3 {[%clk 0:02:07.8]} 10... exd4 {[%clk 0:02:16.3]} 11.
Bxd4 {[%clk 0:02:07.4]} 11... O-O {[%clk 0:02:05.1]} 12. Ne2 {[%clk 0:02:07]}
12... Qa5+ {[%clk 0:01:54.8]} 13. Kf1 {[%clk 0:01:54.9]} 13... Ne5 {[%clk
0:01:35.6]} 14. b3 {[%clk 0:00:57.2]} 14... Bg4 {[%clk 0:01:22.5]} 15. h3 {[%clk
0:00:57.1]} 15... Bh5 {[%clk 0:00:50.3]} 16. Kg1 {[%clk 0:00:27.7]} 16... Rae8
{[%clk 0:00:45.7]} 17. g4 {[%clk 0:00:23.6]} 17... Bg6 {[%clk 0:00:37.4]} 18. f4
{[%clk 0:00:16.2]} 18... Nd3 {[%clk 0:00:32.5]} 19. f5 {[%clk 0:00:11.4]} 19...
Bxd4+ {[%clk 0:00:17.6]} 20. Nxd4 {[%clk 0:00:11.1]} 20... Re1+ {[%clk
0:00:16.9]} 21. Qxe1 {[%clk 0:00:06.8]} 21... Nxe1 {[%clk 0:00:17.2]} 22. fxg6
{[%clk 0:00:05.4]} 22... Qc3 {[%clk 0:00:14.2]} 23. Rd1 {[%clk 0:00:05.1]} 23...
Qe3+ {[%clk 0:00:10.4]} 24. Kh2 {[%clk 0:00:05.6]} 24... Nxg2 {[%clk 0:00:10.6]}
25. Nf5 {[%clk 0:00:03.7]} 25... Qe2 {[%clk 0:00:08.4]} 26. Ng3 {[%clk
0:00:02.9]} 26... Qxa2 {[%clk 0:00:07.9]} 27. gxh7+ {[%clk 0:00:01.6]} 27...
Kxh7 {[%clk 0:00:08.3]} 28. Rhf1 {[%clk 0:00:01.8]} 28... Nh4+ {[%clk
0:00:08.1]} 29. Kg1 {[%clk 0:00:01.6]} 29... Nf3+ {[%clk 0:00:08.5]} 0-1

[Event "Early-Titled-Tuesday-Blitz-June-18-2024"]
[Site "Chess.com"]
[Date "2024.06.18"]
[Round "6"]
[White "salomez"]
[Black "pineapplehhh"]
[Result "1-0"]
[WhiteElo "2348"]
[BlackElo "2100"]
[TimeControl "180+1"]
[EndTime "9:09:01 PDT"]
[Termination "salomez won by checkmate"]

1. e4 {[%clk 0:03:00.9]} 1... e5 {[%clk 0:02:58.8]} 2. Nf3 {[%clk 0:02:58.1]}
2... Nc6 {[%clk 0:02:58.4]} 3. d4 {[%clk 0:02:58.2]} 3... exd4 {[%clk
0:02:57.4]} 4. Nxd4 {[%clk 0:02:59.1]} 4... Nf6 {[%clk 0:02:57.4]} 5. Nc3 {[%clk
0:02:58.5]} 5... Bb4 {[%clk 0:02:56.2]} 6. Nxc6 {[%clk 0:02:57.4]} 6... bxc6
{[%clk 0:02:56.7]} 7. Bd3 {[%clk 0:02:57.6]} 7... d5 {[%clk 0:02:57]} 8. exd5
{[%clk 0:02:56.2]} 8... cxd5 {[%clk 0:02:57.5]} 9. O-O {[%clk 0:02:56.4]} 9...
O-O {[%clk 0:02:57.5]} 10. Bg5 {[%clk 0:02:57]} 10... c6 {[%clk 0:02:57.5]} 11.
Qf3 {[%clk 0:02:54.9]} 11... h6 {[%clk 0:02:57.3]} 12. Bxf6 {[%clk 0:02:54.6]}
12... Qxf6 {[%clk 0:02:56.1]} 13. Qxf6 {[%clk 0:02:54.7]} 13... gxf6 {[%clk
0:02:55.7]} 14. Ne2 {[%clk 0:02:54.1]} 14... Rb8 {[%clk 0:02:44.1]} 15. c3
{[%clk 0:02:52.2]} 15... Ba5 {[%clk 0:02:40.5]} 16. b3 {[%clk 0:02:51.1]} 16...
Be6 {[%clk 0:02:34.6]} 17. Rac1 {[%clk 0:02:49.8]} 17... c5 {[%clk 0:02:33.7]}
18. c4 {[%clk 0:02:47.5]} 18... d4 {[%clk 0:02:32]} 19. Ng3 {[%clk 0:02:47.4]}
19... Bd2 {[%clk 0:02:17.9]} 20. Rc2 {[%clk 0:02:42.9]} 20... Bb4 {[%clk
0:02:08.9]} 21. Nh5 {[%clk 0:02:30.3]} 21... f5 {[%clk 0:01:54.3]} 22. f4 {[%clk
0:02:27.7]} 22... Kh7 {[%clk 0:01:38.2]} 23. g4 {[%clk 0:02:22.9]} 23... Kg6
{[%clk 0:01:26.5]} 24. Ng3 {[%clk 0:02:20.4]} 24... Kf6 {[%clk 0:01:19.8]} 25.
gxf5 {[%clk 0:02:11.3]} 25... Bd7 {[%clk 0:01:15.5]} 26. Re2 {[%clk 0:01:58.9]}
26... Rg8 {[%clk 0:01:09.2]} 27. Kf2 {[%clk 0:01:58.8]} 27... Rxg3 {[%clk
0:00:51.3]} 28. hxg3 {[%clk 0:01:57.8]} 28... Bxf5 {[%clk 0:00:50.6]} 29. Bxf5
{[%clk 0:01:51]} 29... Kxf5 {[%clk 0:00:50.8]} 30. Re5+ {[%clk 0:01:45.8]} 30...
Kf6 {[%clk 0:00:49.5]} 31. Rh1 {[%clk 0:01:40.5]} 31... Kg6 {[%clk 0:00:46.2]}
32. Rd5 {[%clk 0:01:37.6]} 32... Rb6 {[%clk 0:00:38.6]} 33. Kf3 {[%clk 0:01:34]}
33... a5 {[%clk 0:00:35.3]} 34. Ke4 {[%clk 0:00:54.8]} 34... a4 {[%clk
0:00:32.9]} 35. bxa4 {[%clk 0:00:54]} 35... Ra6 {[%clk 0:00:32.8]} 36. f5+
{[%clk 0:00:50.3]} 36... Kg7 {[%clk 0:00:32.7]} 37. Rh2 {[%clk 0:00:38.4]} 37...
Rxa4 {[%clk 0:00:25.9]} 38. Rd6 {[%clk 0:00:38.2]} 38... Ba3 {[%clk 0:00:25.6]}
39. Rdxh6 {[%clk 0:00:33.8]} 39... Kf8 {[%clk 0:00:23.1]} 40. f6 {[%clk
0:00:32.5]} 40... Ke8 {[%clk 0:00:23.2]} 41. Kd5 {[%clk 0:00:32]} 41... Kd7
{[%clk 0:00:21.5]} 42. Re2 {[%clk 0:00:31]} 42... Ra6 {[%clk 0:00:18.6]} 43.
Re7+ {[%clk 0:00:30.7]} 43... Kd8 {[%clk 0:00:18.7]} 44. Rh8# {[%clk 0:00:31.4]}
1-0

[Event "Early-Titled-Tuesday-Blitz-June-18-2024"]
[Site "Chess.com"]
[Date "2024.06.18"]
[Round "6"]
[White "jk13"]
[Black "Alexchess1984"]
[Result "1-0"]
[WhiteElo "2697"]
[BlackElo "2553"]
[TimeControl "180+1"]
[EndTime "9:09:02 PDT"]
[Termination "jk13 won by resignation"]

1. e4 {[%clk 0:03:00.9]} 1... e6 {[%clk 0:02:58.7]} 2. d3 {[%clk 0:02:59.4]}
2... d5 {[%clk 0:02:59.6]} 3. Qe2 {[%clk 0:02:59.6]} 3... Nf6 {[%clk 0:02:57.7]}
4. Nf3 {[%clk 0:03:00.2]} 4... Be7 {[%clk 0:02:52.6]} 5. g3 {[%clk 0:03:00.6]}
5... O-O {[%clk 0:02:51.5]} 6. Bg2 {[%clk 0:03:01.3]} 6... c5 {[%clk 0:02:47.8]}
7. O-O {[%clk 0:03:01.8]} 7... Nc6 {[%clk 0:02:47.6]} 8. e5 {[%clk 0:03:02.3]}
8... Nd7 {[%clk 0:02:46.8]} 9. c4 {[%clk 0:03:03.2]} 9... b5 {[%clk 0:02:45.1]}
10. b3 {[%clk 0:02:55.9]} 10... bxc4 {[%clk 0:02:38.1]} 11. dxc4 {[%clk
0:02:55.6]} 11... Ba6 {[%clk 0:02:35.8]} 12. Rd1 {[%clk 0:02:23.2]} 12... Qc7
{[%clk 0:02:17.5]} 13. Bf4 {[%clk 0:02:21.8]} 13... Nb6 {[%clk 0:02:14.3]} 14.
Na3 {[%clk 0:02:20.6]} 14... Rad8 {[%clk 0:01:58.2]} 15. Nb5 {[%clk 0:02:20.3]}
15... Qb8 {[%clk 0:01:45.4]} 16. a4 {[%clk 0:02:12.9]} 16... Bb7 {[%clk
0:01:30.6]} 17. a5 {[%clk 0:02:03.6]} 17... Nc8 {[%clk 0:01:27.4]} 18. cxd5
{[%clk 0:01:48]} 18... exd5 {[%clk 0:01:26.3]} 19. e6 {[%clk 0:01:47.7]} 19...
Bd6 {[%clk 0:01:07.5]} 20. Nxd6 {[%clk 0:01:45.3]} 20... Nxd6 {[%clk 0:01:07.1]}
21. e7 {[%clk 0:01:35.1]} 21... Nxe7 {[%clk 0:01:03.9]} 22. Qxe7 {[%clk
0:01:36]} 22... Rfe8 {[%clk 0:00:59.9]} 23. Qh4 {[%clk 0:01:19.7]} 23... Qc8
{[%clk 0:00:56.1]} 24. a6 {[%clk 0:01:04.7]} 24... Ba8 {[%clk 0:00:54.8]} 25.
Ne5 {[%clk 0:00:48.1]} 25... f6 {[%clk 0:00:51]} 26. Ng4 {[%clk 0:00:38.6]}
26... Ne4 {[%clk 0:00:45.7]} 27. Bxe4 {[%clk 0:00:23.4]} 27... dxe4 {[%clk
0:00:43.4]} 28. Nxf6+ {[%clk 0:00:20.8]} 28... gxf6 {[%clk 0:00:42.5]} 29. Qxf6
{[%clk 0:00:21.7]} 29... Rxd1+ {[%clk 0:00:36.5]} 30. Rxd1 {[%clk 0:00:22.6]}
30... Qe6 {[%clk 0:00:35.8]} 31. Qxe6+ {[%clk 0:00:22.8]} 31... Rxe6 {[%clk
0:00:34.5]} 32. Rd8+ {[%clk 0:00:23.5]} 32... Kf7 {[%clk 0:00:35.2]} 33. Rxa8
{[%clk 0:00:24.1]} 33... Rxa6 {[%clk 0:00:35.6]} 34. Be3 {[%clk 0:00:23.6]}
34... Ra3 {[%clk 0:00:32.2]} 35. Bxc5 {[%clk 0:00:22.4]} 35... Rxb3 {[%clk
0:00:32.5]} 36. Rxa7+ {[%clk 0:00:22.8]} 36... Ke6 {[%clk 0:00:32.8]} 37. Rxh7
{[%clk 0:00:22]} 37... Kd5 {[%clk 0:00:33.7]} 38. Be3 {[%clk 0:00:21.9]} 38...
Kc4 {[%clk 0:00:34.6]} 39. Kg2 {[%clk 0:00:22.3]} 39... Kd3 {[%clk 0:00:35.5]}
40. Rd7+ {[%clk 0:00:22]} 40... Ke2 {[%clk 0:00:36.3]} 41. Rd2+ {[%clk
0:00:21.9]} 41... Ke1 {[%clk 0:00:37.1]} 42. Ra2 {[%clk 0:00:21.8]} 42... Rb1
{[%clk 0:00:37.3]} 43. h4 {[%clk 0:00:20.8]} 43... Kd1 {[%clk 0:00:31.5]} 44. h5
{[%clk 0:00:20.2]} 44... Rb5 {[%clk 0:00:27.1]} 45. h6 {[%clk 0:00:20.1]} 45...
Rh5 {[%clk 0:00:26.9]} 46. g4 {[%clk 0:00:20.2]} 46... Rh4 {[%clk 0:00:25.9]}
47. g5 {[%clk 0:00:20.1]} 47... Rxh6 {[%clk 0:00:24.1]} 48. gxh6 {[%clk
0:00:19.6]} 1-0